[Event "Seniors-LEM-65 Sachsen-Anhalt 2024"]
[Site "Magdeburg"]
[Date "2024.07.03"]
[Round "3.30"]
[White "Kalkmann, Hans"]
[Black "Bielfeldt, Michael"]
[Result "1/2-1/2"]
[ECO "D02"]
[WhiteElo "1910"]
[BlackElo "1810"]
[Annotator "RC"]
[PlyCount "88"]
[EventDate "2024.06.25"]
[EventType "swiss"]
[EventCountry "GER"]
[SourceTitle "playchess.com"]
[Source "ChessBase"]
[SourceQuality "1"]
[TimeControl "40/5400+30:1800+30"]

1. d4 {[%emt 0:00:05]} d5 {[%emt 0:00:09]} 2. Nf3 {[%emt 0:00:19]} Bf5 {[%emt 0:00:31]} 3. g3 {[%emt 0:00:21]} e6 {[%emt 0:00:09]} 4. Bg2 {[%emt 0:00:11]} Nf6 {[%emt 0:00:33]} 5. c3 {[%emt 0:01:27]} c6 {[%emt 0:00:40]} 6. Bg5 {[%emt 0:00:54]} Be7 {[%emt 0:00:27]} 7. O-O {[%emt 0:00:47]} h6 {[%emt 0:00:53]} 8. Bxf6 {[%emt 0:00:11]} Bxf6 {[%emt 0:00:08]} 9. Nbd2 {[%emt 0:00:21]} Nd7 {[%emt 0:00:47]} 10. Re1 {[%emt 0:00:23]} O-O {[%emt 0:01:54]} 11. e4 {[%emt 0:00:10]} Bh7 {[%emt 0:01:02]} 12. exd5 {[%emt 0:01:18]} cxd5 {[%emt 0:02:07]} 13. Ne5 {[%emt 0:00:45]} Qc7 {[%emt 0:06:15]} 14. Nxd7 {[%emt 0:01:46]} Qxd7 {[%emt 0:00:08]} 15. Nf3 {[%emt 0:00:08]} Rac8 {[%emt 0:06:28]} 16. Qd2 {[%emt 0:01:47]} b5 {[%emt 0:01:32]} 17. Ne5 {[%emt 0:02:32]} Qb7 {[%emt 0:00:50]} 18. a3 {[%emt 0:01:07]} Be7 {[%emt 0:01:38]} 19. Bf1 {[%emt 0:02:53]} Bd6 {[%emt 0:05:16]} 20. Bd3 {[%emt 0:00:46]} Bxe5 {[%emt 0:01:17]} 21. Bxh7+ {[%emt 0:02:44]} Kxh7 {[%emt 0:00:04]} 22. Rxe5 {[%emt 0:00:15]} a5 {[%emt 0:02:30]} 23. Re3 {[%emt 0:03:59]} Rb8 {[%emt 0:01:17]} 24. Rc1 {[%emt 0:01:20]} Rfc8 {[%emt 0:04:12]} 25. h3 {[%emt 0:02:13]} Qc7 {[%emt 0:04:15]} 26. Ree1 {[%emt 0:03:12]} Rb6 {[%emt 0:04:52]} 27. Kg2 {[%emt 0:02:38]} Rc6 {[%emt 0:00:13]} 28. Qd3+ {[%emt 0:00:23]} Kh8 {[%emt 0:00:38]} 29. Qxb5 {[%emt 0:00:24]} Rb8 {[%emt 0:02:06]} 30. Qe2 {[%emt 0:00:22]} Rb3 {[%emt 0:00:40]} 31. Rc2 {[%emt 0:02:26]} Qb7 {[%emt 0:00:38]} 32. Rd1 {[%emt 0:01:46]} Rcb6 {[%emt 0:02:38]} 33. Rdd2 {[%emt 0:00:18]} a4 {[%emt 0:06:09]} 34. h4 {[%emt 0:00:28]} Qb8 {[%emt 0:06:26]} 35. Kh3 {[%emt 0:03:04]} Qc8 {[%emt 0:01:29]} 36. Kh2 {[%emt 0:01:00]} Qc7 {[%emt 0:37:39]} 37. f4 {[%emt 1:04:17]} Qc8 {[%emt 0:00:00]} 38. Qf2 {[%emt 0:00:00]} g6 {[%emt 0:00:00]} 39. Re2 {[%emt 0:00:00]} h5 {[%emt 0:00:00]} 40. Qe3 {[%emt 0:00:00]} Qb7 {[%emt 0:00:00]} 41. Qf2 {[%emt 0:00:00]} f5 {[%emt 0:05:40]} 42. Kh3 {[%emt 0:00:00]} Kg8 {[%emt 0:01:25]} 43. Qe3 {[%emt 0:00:00]} Kf7 {[%emt 0:02:41]} 44. Qe5 {[%emt 0:00:00]} Qc8 {[%emt 0:03:40]} 1/2-1/2